Cogmind - Beta 10 @@@ ROGUE MODE // 2020.09.20 @ 13:12:03 Player: Llandrysgryf Result: Destroyed by Y-45 Defender with Heavy Assault Rifle Performance ------------- Evolutions (2) 1000 Regions Visited (6) 1200 Robots Destroyed (104) 520 Value Destroyed (4431) 4431 Prototype IDs (1) 20 Alien Tech Used (0) 0 Bonus (507) 507 TOTAL SCORE: 7678 Bonus ------- High Alert Combat Kills 307 Entered Garrisons 200 Cogmind --------- Core Integrity 0/550 Matter 258/300 Energy 100/100 System Corruption 0% Temperature Cool (9) Movement Core (1600) Ox31 Location -8/Storage Parts ------- > --- POWER (1) -------- (None) > --- PROPULSION (4) --- (None) > --- UTILITY (4) ------ High-capacity Storage Unit High-capacity Storage Unit High-capacity Storage Unit > --- WEAPON (2) ------- (None) > --- INVENTORY (28) --- Large Storage Unit Large Storage Unit Large Storage Unit Large Storage Unit Small Matter Pod (0) Small Matter Pod (0) Large Matter Pod (0) Terrain Scanner Terrain Scan Processor Light Armor Plating Reflective Plating Reflective Plating Reflective Plating Reflective Plating Particle Cannon Proton Missile Launcher Peak State ------------ > --- POWER ------------ Improved Ion Engine > --- PROPULSION ------- Advanced Treads Advanced Treads Advanced Treads Advanced Treads > --- UTILITY ---------- High-capacity Storage Unit High-capacity Storage Unit High-capacity Storage Unit Improved Light Armor Plating > --- WEAPON ----------- Heavy Assault Rifle Heavy Assault Rifle > --- INVENTORY -------- Ion Engine Ion Engine Light Ion Engine Advanced Treads Advanced Treads Advanced Treads Advanced Treads Advanced Treads Advanced Treads Advanced Treads Advanced Treads Large Storage Unit Large Storage Unit Large Storage Unit Large Storage Unit Large Matter Pod Terrain Scanner Terrain Scan Processor Light Armor Plating Reflective Plating Reflective Plating Reflective Plating Reflective Plating Particle Cannon Particle Cannon Rocket Launcher Mini Grenade Launcher Mini Grenade Launcher [Rating: 29] Favorites ----------- Power Ion Engine Engine Ion Engine Propulsion Advanced Treads Treads Advanced Treads Leg Aluminum Leg Flight Unit Flight Unit Utility High-capacity Storage Unit Storage High-capacity Storage Unit Processor Signal Interpreter Protection Hardened Light Armor Plating Weapon Light Assault Rifle Energy Gun Small Laser Energy Cannon Particle Cannon Ballistic Gun Light Assault Rifle Ballistic Cannon Light Cannon Launcher Mini Grenade Launcher Build | -11 -10 -9 -9 -8 -8 -8 ------- Run | Scr Mat Mat Min Mat Gar Sto Slots Evolved 4 | . . 2 . 2 . . Power . | . . . . . . . Propulsion 2 | . . . . 2 . . Utility 2 | . . 2 . . . . Weapon . | . . . . . . . Parts Attached 78 | 6 17 26 . 5 20 4 Power 10 | 1 2 3 . . 4 . Engine 10 | 1 2 3 . . 4 . Core . | . . . . . . . Reactor . | . . . . . . . Propulsion 29 | 2 4 11 . 2 8 2 Treads 24 | . 4 9 . 2 8 1 Leg 4 | 2 . 2 . . . . Wheel . | . . . . . . . Hover . | . . . . . . . Flight 1 | . . . . . . 1 Utility 11 | 1 3 4 . 1 1 1 Device . | . . . . . . . Storage 6 | 1 2 2 . . 1 . Processor 1 | . 1 . . . . . Hackware . | . . . . . . . Protection 4 | . . 2 . 1 . 1 Artifact . | . . . . . . . Weapon 28 | 2 8 8 . 2 7 1 Energy Gun 1 | 1 . . . . . . Energy Cannon 1 | . . . . . . 1 Ballistic Gun 18 | 1 4 7 . 2 4 . Ballistic Cannon 2 | . 1 1 . . . . Launcher 6 | . 3 . . . 3 . Special Weapon . | . . . . . . . Impact Weapon . | . . . . . . . Slashing Weapon . | . . . . . . . Piercing Weapon . | . . . . . . . Special Melee Weapon . | . . . . . . . Unidentified Prototypes . | . . . . . . . Parts Lost 53 | . 8 17 . . 17 11 Power 10 | . 2 3 . . 4 1 Propulsion 20 | . 1 6 . . 8 5 Utility 3 | . . . . . 1 2 Weapon 20 | . 5 8 . . 4 3 Highest Loss Streak 6 | . 5 3 . . 5 6 Average Slot Usage (%) 96 | . 96 97 100 99 98 76 Engine 9 | . 12 10 11 9 8 3 Treads 27 | . 23 20 22 36 35 21 Leg 1 | . 3 . . . . . Storage 34 | . 26 38 33 27 35 31 Protection 2 | . . 4 11 9 . 3 Ballistic Gun 12 | . 15 14 22 17 9 4 Ballistic Cannon 3 | . 3 7 . . . . Launcher 4 | . 6 . . . 7 8 Naked Turns . | . . . . . . . Heaviest Build 123 | 9 74 123 112 112 113 109 Greatest Support 88 | 20 40 46 44 88 88 88 Greatest Overweight (x) 36 | 1 3 6 2 1 2 36 Average Overweight (x) 1 | . . 2 2 1 1 3 Largest Inventory Capacity 34 | 6 20 34 28 28 28 28 Average Capacity 26 | 5 18 31 28 28 28 28 Most Carried 28 | 6 17 28 28 28 28 18 Average Carried 18 | 4 9 19 27 26 21 16 Final Capacity 28 | 6 20 28 28 28 28 28 Final Carried 28 | 4 17 27 28 28 17 16 Class Distribution -------------------- 97% | Hauler-Mutant Dominant Class ---------------- Hauler-Mutant | -10/Materials Hauler-Mutant | -9/Materials Hauler-Mutant | -9/Mines Hauler-Mutant | -8/Materials Hauler-Mutant | -8/Garrison Hauler-Mutant | -8/Storage Resources | -11 -10 -9 -9 -8 -8 -8 ----------- Run | Scr Mat Mat Min Mat Gar Sto Matter Collected 2473 | 147 615 707 . 94 859 51 Remotely . | . . . . . . . Salvage Created 2550 | . 795 796 . 111 699 149 Parts 195 | . 63 57 . 8 46 21 Haulers Intercepted 2 | . . . . . . 2 Recyclers Shooed 2 | . 1 . . 1 . . Parts Field Recycled . | . . . . . . . Retrieved Matter . | . . . . . . . Parts Self-Destructed . | . . . . . . . Prevented . | . . . . . . . Kills | -11 -10 -9 -9 -8 -8 -8 ------- Run | Scr Mat Mat Min Mat Gar Sto Combat Hostiles Destroyed 88 | . 25 29 . 2 28 4 Guns 39 | . 5 23 . 2 8 1 Cannons 10 | . 3 6 . . . 1 AOE 39 | . 17 . . . 20 2 Classes Destroyed 11 | . 6 1 . . 3 1 Worker 3 | . 2 1 . . . . Builder 9 | . 6 . . . . 3 Hauler 2 | . . . . . . 2 Recycler 1 | . 1 . . . . . Watcher 1 | . 1 . . . . . Swarmer 29 | . 6 13 . . 8 2 Grunt 42 | . 19 12 . . 11 . Duelist 1 | . . . . . 1 . Sentry 13 | . . 4 . 2 6 1 Hunter 2 | . . . . . 1 1 Behemoth 1 | . . . . . 1 . Best Kill Streak 9 | . 8 4 . 1 8 9 Combat Bots Only 8 | . 5 4 . 1 8 4 Max Kills in Single Turn 3 | . 3 2 . 1 3 2 Gunslinging 1 | . . 1 . . . . Exploded 3 | . 2 . . . 3 1 Melee . | . . . . . . . Uniques/NPCs Destroyed . | . . . . . . . Combat | -11 -10 -9 -9 -8 -8 -8 -------- Run | Scr Mat Mat Min Mat Gar Sto Damage Taken 8654 | . 1402 2782 . 313 2646 1511 Core 1192 | . 247 394 . 28 113 410 Absorbed by Shields . | . . . . . . . Core Remaining (%) 34 | 100 1 . 1 . . . Volleys Fired 250 | . 48 105 . 11 74 12 Largest 2 | . 2 2 . 2 2 2 Hottest 98 | . 60 70 . 43 56 98 Shots Fired 470 | . 94 185 . 22 145 24 Gun 318 | . 63 131 . 22 92 10 Cannon 64 | . 8 54 . . . 2 Launcher 88 | . 23 . . . 53 12 Special . | . . . . . . . Kinetic 375 | . 66 185 . 22 92 10 Thermal 7 | . 5 . . . . 2 Explosive 88 | . 23 . . . 53 12 Electromagnetic . | . . . . . . . Robot Hit Streak 22 | . 8 22 . 20 22 9 Robot Miss Streak 4 | . 4 3 . . 2 3 Penetration Max . | . . . . . . . Secondary Targets 11 | . . 10 . . 1 . Max Gunslinging Chain 1 | . . 1 . . 1 . Shots Hit Robots 326 | . 59 136 . 20 95 16 Core Hits 187 | . 61 51 . 5 58 12 Critical Hits 2 | . . 1 . . 1 . Critical Kills 1 | . . . . . 1 . Critical Parts Destroyed 1 | . . 1 . . . . Melee Attacks . | . . . . . . . Impact . | . . . . . . . Slashing . | . . . . . . . Piercing . | . . . . . . . Sneak Attacks . | . . . . . . . Combat Hostiles . | . . . . . . . Follow-up Attacks . | . . . . . . . Damage Inflicted 7786 | . 2150 1665 . 240 3070 661 Guns 2627 | . 426 919 . 240 989 53 Cannons 805 | . 75 689 . . . 41 Explosions 4297 | . 1649 . . . 2081 567 Melee . | . . . . . . . Ramming 57 | . . 57 . . . . Kinetic 3368 | . 478 1608 . 240 989 53 Thermal 64 | . 23 . . . . 41 Explosive 4297 | . 1649 . . . 2081 567 Electromagnetic . | . . . . . . . Impact . | . . . . . . . Slashing . | . . . . . . . Piercing . | . . . . . . . Highest Corruption 1 | . 1 1 1 . . . Average Corruption 1 | . 1 1 1 . . . Corruption Purged . | . . . . . . . Effects 11 | . 7 3 1 . . . Message Errors 8 | . 5 2 1 . . . Energy Discharges 1 | . 1 . . . . . Data Loss (minor) 2 | . 1 1 . . . . Overload Shots . | . . . . . . . Overflow Damage 263 | . 51 3 . . 168 41 Projectiles . | . . . . . . . Explosions 260 | . 51 . . . 168 41 Melee 3 | . . 3 . . . . Knockbacks 6 | . 1 5 . . . . Impact 1 | . . 1 . . . . Kinetic 5 | . 1 4 . . . . Secondary . | . . . . . . . Self-Inflicted Damage 1275 | . 223 . . . 940 112 Shots 46 | . 12 . . . 28 6 Rammed 4 | . . 4 . . . . Targets Rammed 4 | . . 4 . . . . Kicked . | . . . . . . . Crushed . | . . . . . . . Highest Temperature 135 | . 127 135 . 11 13 54 Average Temperature 26 | . 31 29 . 3 3 29 Received Heat Transfer 2481 | . 612 888 . 90 486 405 Siege Activations . | . . . . . . . Robots Corrupted . | . . . . . . . Combat Hostiles . | . . . . . . . Parts Fried . | . . . . . . . Impact Corruptions 1 | . . 1 . . . . Robots Melted . | . . . . . . . Combat Hostiles . | . . . . . . . Parts Melted . | . . . . . . . Heat Transferred 124 | . 50 . . . . 74 Parts Sabotaged . | . . . . . . . Parts Stolen . | . . . . . . . Parts Stripped . | . . . . . . . Power Chain Reactions . | . . . . . . . Missiles Intercepted . | . . . . . . . Alert | -11 -10 -9 -9 -8 -8 -8 ------- Run | Scr Mat Mat Min Mat Gar Sto Peak Influence 1732 | . 357 298 115 168 1732 846 Initial 844 | . . 100 115 44 109 844 Average 475 | . 161 139 115 90 943 730 Maximum Alert Level 5 | . 1 1 . . 5 3 Low Security (%) 42 | 100 55 77 100 100 5 . Level 1 17 | . 44 22 . . 2 . Level 2 13 | . . . . . 28 60 Level 3 13 | . . . . . 31 39 Level 4 9 | . . . . . 25 . Level 5 2 | . . . . . 7 . High Security . | . . . . . . . Max Security . | . . . . . . . Squads Dispatched 16 | . 7 4 . . . 5 Investigation 6 | . 4 1 . . . 1 Extermination . | . . . . . . . Reinforcement 7 | . 3 3 . . . 1 Assault . | . . . . . . . Garrison 3 | . . . . . . 3 Intercept . | . . . . . . . Construction Impeded . | . . . . . . . Haulers Reinforced . | . . . . . . . Stealth | -11 -10 -9 -9 -8 -8 -8 --------- Run | Scr Mat Mat Min Mat Gar Sto Distress Signals 9 | . 5 4 . . . . Communications Jammed . | . . . . . . . Distress Signals . | . . . . . . . Times Spotted 139 | . 48 46 . 4 30 11 Peak Tracking Total 6 | . 6 5 . 3 5 5 Tactical Retreats 5 | . 2 2 . . 1 . Traps | -11 -10 -9 -9 -8 -8 -8 ------- Run | Scr Mat Mat Min Mat Gar Sto Traps Triggered 13 | . 4 2 . . 7 . Indirectly . | . . . . . . . Trap Hack Attempts . | . . . . . . . Triggered . | . . . . . . . Disarmed . | . . . . . . . Reprogrammed . | . . . . . . . Reused . | . . . . . . . Traps Extracted . | . . . . . . . Installed . | . . . . . . . Triggered . | . . . . . . . Machines | -11 -10 -9 -9 -8 -8 -8 ---------- Run | Scr Mat Mat Min Mat Gar Sto Machines Disabled 15 | . 3 . . . 11 1 Max in Single Turn 1 | . 1 . . . 1 1 Garrison Relay 5 | . . . . . 5 . Phase Generator 1 | . . . . . 1 . Machines Sabotaged . | . . . . . . . Garrisons Compromised . | . . . . . . . Overloaded Fab Kills . | . . . . . . . Fab Network Shutdowns . | . . . . . . . Hacking | -11 -10 -9 -9 -8 -8 -8 --------- Run | Scr Mat Mat Min Mat Gar Sto Machines Accessed 8 | . 1 4 . 1 . 2 Terminals 3 | . . 1 . . . 2 Fabricators . | . . . . . . . Repair Stations 3 | . 1 2 . . . . Recycling Units . | . . . . . . . Scanalyzers 1 | . . 1 . . . . Garrison Access 1 | . . . . 1 . . Total Hacks 27 | . 5 14 . 1 . 7 Successful 21 | . 5 9 . 1 . 6 Failed 6 | . . 5 . . . 1 Catastrophic . | . . . . . . . Database Lockouts . | . . . . . . . Manual . | . . . . . . . Terminals 12 | . . 5 . . . 7 Fabricators . | . . . . . . . Repair Stations 11 | . 5 6 . . . . Recycling Units . | . . . . . . . Scanalyzers 3 | . . 3 . . . . Garrison Access 1 | . . . . 1 . . Terminal Hacks 9 | . . 3 . . . 6 Record 2 | . . 1 . . . 1 Part Schematic 1 | . . . . . . 1 Open Door 1 | . . . . . . 1 Alert Level 2 | . . 1 . . . 1 Unreport Threat 2 | . . . . . . 2 Zone Layout 1 | . . 1 . . . . Fabricator Hacks . | . . . . . . . Repair Station Hacks 9 | . 5 4 . . . . Scan Component 5 | . 3 2 . . . . Repair 4 | . 2 2 . . . . Recycling Unit Hacks . | . . . . . . . Scanalyzer 2 | . . 2 . . . . Insert Component 1 | . . 1 . . . . Analyze 1 | . . 1 . . . . Garrison Access Hacks 1 | . . . . 1 . . Unlock Access 1 | . . . . 1 . . Unauthorized Hacks . | . . . . . . . Terminals . | . . . . . . . Fabricators . | . . . . . . . Repair Stations . | . . . . . . . Recycling Units . | . . . . . . . Scanalyzers . | . . . . . . . Garrison Access . | . . . . . . . Data Cores Recovered . | . . . . . . . Used . | . . . . . . . Hacking Detections 5 | . 1 3 . . . 1 Full Trace Events 2 | . 1 . . . . 1 Feedback Events . | . . . . . . . Feedback Blocked . | . . . . . . . Robot Schematics Acquired . | . . . . . . . Robots Built . | . . . . . . . Matter . | . . . . . . . Time . | . . . . . . . Total Robot Build Rating . | . . . . . . . Part Schematics Acquired 2 | . . 1 . . . 1 Parts Built . | . . . . . . . Matter . | . . . . . . . Time . | . . . . . . . Total Part Build Rating . | . . . . . . . Parts Repaired 4 | . 2 2 . . . . Time 110 | . 52 58 . . . . Parts Recycled . | . . . . . . . Recycled Matter . | . . . . . . . Retrieved Matter . | . . . . . . . Retrieved Components . | . . . . . . . Parts Scanalyzed 1 | . . 1 . . . . Part Schematics Acquired 1 | . . 1 . . . . Parts Damaged . | . . . . . . . Bothacking | -11 -10 -9 -9 -8 -8 -8 ------------ Run | Scr Mat Mat Min Mat Gar Sto Used RIF Installer . | . . . . . . . Robots Hacked . | . . . . . . . Non-combat . | . . . . . . . Combat . | . . . . . . . Robot Hacks Applied . | . . . . . . . Relay Couplers Released 19 | . . . . . 19 . Machine Destruction 19 | . . . . . 19 . Robots Rewired . | . . . . . . . Allies Hacked . | . . . . . . . Hacks Repelled . | . . . . . . . Allies | -11 -10 -9 -9 -8 -8 -8 -------- Run | Scr Mat Mat Min Mat Gar Sto Total Allies . | . . . . . . . Largest Group . | . . . . . . . Highest-Rated Group . | . . . . . . . Highest-Rated Ally . | . . . . . . . Total Orders . | . . . . . . . Ally Attacks . | . . . . . . . Total Damage . | . . . . . . . Kills . | . . . . . . . Allies Corrupted . | . . . . . . . Allies Melted . | . . . . . . . Intel | -11 -10 -9 -9 -8 -8 -8 ------- Run | Scr Mat Mat Min Mat Gar Sto Robot Analysis Total . | . . . . . . . Derelict Logs Recovered . | . . . . . . . Drone Launches . | . . . . . . . Drone Recoveries . | . . . . . . . Exploration | -11 -10 -9 -9 -8 -8 -8 ------------- Run | Scr Mat Mat Min Mat Gar Sto Turns Passed 7114 | 67 1521 2233 31 201 2653 408 Spaces Moved 3408 | 50 756 895 17 93 1462 135 Core 35 | 26 . . . . . 9 Treads 3215 | . 651 866 17 93 1462 126 Legs 158 | 24 105 29 . . . . Wheels . | . . . . . . . Hover . | . . . . . . . Flight . | . . . . . . . Fastest Speed 50 | 50 120 185 185 165 165 165 Average Speed 182 | 102 173 209 185 165 165 279 Slowest Speed 1850 | 120 220 300 185 165 185 1850 Overloaded Moves . | . . . . . . . Propulsion Burnouts . | . . . . . . . Robots Hopped . | . . . . . . . Cave-ins Triggered . | . . . . . . . Exploration Rate (%) 45 | 4 97 63 10 12 98 31 Regions Visited 6 Branch Regions 2 Pre-discovered Areas . | . . . . . . . Known Exits Taken 1 | . . . . 1 . . Unknown Exits Taken 4 | 1 1 1 1 . . . Scrap Searched . | . . . . . . . Spaces Dug . | . . . . . . . Terrain Destroyed 648 | . 133 . . . 483 32 Melee . | . . . . . . . Projectile . | . . . . . . . AOE 648 | . 133 . . . 483 32 Terrain Rammed . | . . . . . . . Walls Destroyed . | . . . . . . . Machines Disabled . | . . . . . . . Actions | -11 -10 -9 -9 -8 -8 -8 --------- Run | Scr Mat Mat Min Mat Gar Sto Total 3889 | 65 880 1083 17 125 1562 157 Wait 57 | . 29 23 . . 3 2 Move 3392 | 49 755 894 16 92 1451 135 Hop . | . . . . . . . Pick Up 87 | 10 28 31 1 8 6 3 Fast Attach 1 | . . . . 1 . . Attach 61 | 6 11 21 . 2 17 4 Detach . | . . . . . . . Swap 16 | . 6 5 . 2 3 . Drop 14 | . 3 . . 9 1 1 Fire 250 | . 48 105 . 11 74 12 Melee . | . . . . . . . Ram . | . . . . . . . Kick . | . . . . . . . Crush 4 | . . 4 . . . . Escape Stasis 6 | . . . . . 6 . Rewire 1 | . . . . . 1 . Trap . | . . . . . . . Miscellaneous . | . . . . . . . Route ------- -11/Scrapyard -10/Materials (discovered 4 exits: *Mat x3 / [*Min]) -9/Materials (discovered 2 exits: *Mat / [*Min]) -9/Mines -8/Materials -8/Garrison (discovered 3 exits: *Sto x3) -8/Storage History --------- Turn | Location | Event 9 | -11/Scrapyard | Discovered new exit (range 16) 68 | -11/Scrapyard | Entered Materials 256 | -10/Materials | Core integrity fell below 50% 298 | -10/Materials | Lost 5 parts (1p1n3w) 493 | -10/Materials | Build established: Hauler-Mutant 684 | -10/Materials | Discovered new exit (range 3) 798 | -10/Materials | Core integrity fell below 20% 809 | -10/Materials | Repaired Lgt. Treads 842 | -10/Materials | Repaired Lgt. Treads 973 | -10/Materials | Discovered new exit (range 15) 1373 | -10/Materials | Discovered new exit (range 16) 1476 | -10/Materials | Discovered new exit (range 15) 1589 | -10/Materials | Entered another Materials area 1589 | -9/Materials | Evolved 2 slots: Utility x2 1719 | -9/Materials | Repaired Lgt. Treads 1891 | -9/Materials | Lost 3 parts (1p1n1w) 2505 | -9/Materials | Discovered new exit (range 15) 2590 | -9/Materials | Lost 3 parts (1p1n1w) 2593 | -9/Materials | Core integrity fell below 50% 2788 | -9/Materials | Core integrity fell below 20% 2940 | -9/Materials | Discovered new exit (range 16) 3188 | -9/Materials | Repaired Hrd. Light Armor Plating 3822 | -9/Materials | Entered Mines 3837 | -9/Mines | Discovered new exit (range 9) 3846 | -9/Mines | Received a Rocket Launcher from a helpful Derelict 3853 | -9/Mines | Entered Materials 3853 | -8/Materials | Evolved 2 slots: Propulsion x2 4046 | -8/Materials | Identified exit to Garrison 4054 | -8/Materials | Entered Garrison 4104 | -8/Garrison | Triggered checkpoint 4234 | -8/Garrison | Triggered checkpoint 4238 | -8/Garrison | Destroyed 8 combat bots 4296 | -8/Garrison | Lost 3 parts (1p1n1u) 4364 | -8/Garrison | Triggered checkpoint 4426 | -8/Garrison | Discovered new exit (range 12) 4444 | -8/Garrison | Attempted to access garrison exit controls, blocked by remote lockdown 4626 | -8/Garrison | Triggered checkpoint 4710 | -8/Garrison | Triggered checkpoint 4768 | -8/Garrison | Discovered new exit (range 14) 4793 | -8/Garrison | Attempted to access garrison exit controls, blocked by remote lockdown 5160 | -8/Garrison | Triggered checkpoint 5651 | -8/Garrison | Phase Generator disabled 5721 | -8/Garrison | Garrison Relay disabled 5959 | -8/Garrison | Garrison Relay disabled 6103 | -8/Garrison | Garrison Relay disabled 6194 | -8/Garrison | Triggered checkpoint 6266 | -8/Garrison | Spotted B-75 Beast 6275 | -8/Garrison | Garrison Relay disabled 6298 | -8/Garrison | Destroyed B-75 Beast 6327 | -8/Garrison | Lost 5 parts (1p2n2w) 6556 | -8/Garrison | Garrison Relay disabled 6678 | -8/Garrison | Discovered new exit (range 15) 6707 | -8/Garrison | Entered Storage 6894 | -8/Storage | Garrison activated, responded to threat 6940 | -8/Storage | Lost 6 parts (1p3n1u1w) 7032 | -8/Storage | Core integrity fell below 50% 7077 | -8/Storage | Lost 3 parts (2n1w) 7104 | -8/Storage | Core integrity fell below 20% 7115 | -8/Storage | Destroyed by Y-45 Defender with Heavy Assault Rifle Last Messages --------------- 07073_ K-01 Serf cleans the Garrison Access. 07074_ U-05 Engineer lays Concrete. 07079_ U-05 Engineer builds a Door. 07079_ U-05 Engineer lays Concrete. 07084_ Hrd. Medium Armor Plating destroyed. 07084_ U-05 Engineer lays Concrete. 07085_ U-05 Engineer builds a Wall. 07086_ U-05 Engineer lays Concrete. 07090_ U-05 Engineer builds a Wall. 07091_ U-05 Engineer lays Concrete. 07093_ Mni. Grenade Launcher destroyed. 07094_ Y-45 Defender emerges from the garrison. 07094_ U-05 Engineer lays Concrete. 07096_ U-05 Engineer builds a Wall. 07096_ U-05 Engineer lays Concrete. 07104_ U-05 Engineer builds a Wall. 07107_ U-05 Engineer lays Concrete. 07109_ U-05 Engineer builds a Wall. 07110_ U-05 Engineer lays Concrete. 07111_ U-05 Engineer builds a Wall. Map ----- +----------------------------------------------------+ | ????# # # """ T#?????????????????????? | | ????# # # """ ##?????????????????????? | | ????#?# # """ #??????????????????????? | | ??????# # #??????????????????????? | | ??????# # """ #??????????????????????? | | ??????# # """ #??????????????????????? | | ??????# # """ #??????????????????????? | | ??????# # #??????????????????????? | | ??????################+##??????????????????????? | | ?????????????????????# #???????????????????????? | | ??????###########????# #???????????????????????? | | ????? #####+######??????????????????? | | ??????? + #??????????????????? | | ??????????# # #??????????????????? | | ??????????# !! # #??????????????????? | | ??????????# ! + #?########?????????? | | ??????????#### ^ # ###T#!!!!#?????????? | | ?????????????# # ## #?????????? | | ?????????????# ######### !!!!#?????????? | | ?????????????# #??????## ## ###### ?? | | ?????????????# #########+###u ######### | | ?????????????# % | | ???????????" + | | ?????????""" # r % | | ????????? # ! # ###### | | ???????? /?# !! @ # ##????? | | ??????? ??# ! Y # #?????? | | ???????#"T???# Y ##?????? | | ?????????????# u Y ##??????? | | ?????????????# ####+## ######" " ##???????? | | ?????????????## #??# ## "G" ##????????? | | ??????????????# ??"" !!! ###"""##?????????? | | ??????????????# ?#"" !!! ?#####??????????? | | ??????????????# ?#"T !!! #????????????????? | | ??????????????# ??"" #????????????????? | | ??????????????+ ??"" #????????????????? | | ??????????????# ???## #????????????????? | | ??????????????# ????# #????????????????? | | ??????????????# ?????# #????????????????? | | ??????????????? ?????#########?????????????????? | | ???????????????????????????????????????????????? | | ???????????????????????????????????????????????? | | ???????????????????????????????????????????????? | | ???????????????????????????????????????????????? | | ???????????????????????????????????????????????? | | ???????????????????????????????????????????????? | | ???????????????????????????????????????????????? | | ???????????????????????????????????????????????? | | ???????????????????????????????????????????????? | | ???????????????????????????????????????????????? | +----------------------------------------------------+ Best States ------------- Heat Dissipation 31 Energy Generation 12 Energy Capacity 265 Matter Stores 450 Matter Capacity 450 Sight Range 16 Terrain Scan Density 10 Armor Coverage 225 Evasion (%) 50 Recoil Reduction 4 Item Schematics ----------------- Imp. Assault Rifle | -9/Materials | Scanalyzed Imp. ECM Suite | -8/Storage | Hacked Robot Schematics ------------------ None Fabricated ------------ Nothing Alien Tech Used ----------------- None Achievements -------------- Close Call Let's See Who's Tougher Remodeling Safety First Troublemaker Challenges ------------ None Game ------ Seed DerelictMiniDriver Manual? 0 Play Time 01:10:09 Cumulative 8.7 hours Start 2020.09.20 @ 12:02:03 End 2020.09.20 @ 13:12:03 Sessions 1 Manual Loads 0 Difficulty Rogue Special Mode None Game No. 7 Rogue 7 Adventurer 0 Explorer 0 Win Type - Total 0 Types 0/0/0/0/0/0/0/0/0 Lore% 2 Gallery% 8 Achievement% 9 Wizard Run 0 Options --------- ASCII 0 Keyboard 0 Movement Numpad Keybinds 0 Fullscreen 1 Font 36/Smallcaps Map View 76x50 Tactical HUD 1 Map Filters NONE Filters NONE Steam 1 RUN: 1992d524-58c2-4dd4-a86a-6372c76784d2